bitfinex-derivatives/quotes_SOLF0:USTF0_20250516
["timestamp","ask_amount","ask_price","bid_price","bid_amount"]
[1747364648554,58.42,172.88,172.76,3.8407]
[1747364649755,5.7837,172.86,172.81,5.785]
[1747364650141,58.42,172.88,172.79,58.38]
[1747364651054,64.2032,172.88,172.82,5.7847]
[1747364651446,64.2032,172.88,172.79,58.38]
[1747364651647,64.1432,172.88,172.79,58.38]
[1747364651858,64.1432,172.88,172.83,5.7843]
[1747364652451,58.38,172.89,172.79,58.38]
[1747364652657,116.72,172.89,172.79,58.38]
[1747364652955,122.5029,172.89,172.79,58.38]
[1747364653656,5.7824,172.9,172.79,58.38]
[1747364653855,64.1024,172.9,172.79,58.38]
[1747364654152,64.1024,172.9,172.85,5.7838]
[1747364655056,5.7827,172.89,172.84,5.7842]
[1747364655461,5.7827,172.89,172.79,58.38]
[1747364655759,58.3,172.9,172.79,58.38]
[1747364655959,58.3,172.9,172.83,5.7845]
[1747364656258,5.7834,172.87,172.83,5.7845]
[1747364657152,5.783,172.88,172.84,5.7842]
[1747364658460,5.7827,172.89,172.85,5.7839]
[1747364660460,64.0824,172.9,172.86,5.7836]
[1747364660759,58.3,172.9,172.79,58.38]
[1747364661160,5.783,172.88,172.84,5.7841]
[1747364661860,58.28,172.89,172.79,116.66]
[1747364662354,58.38,172.88,172.79,58.38]
[1747364662958,5.42279205,172.87,172.76,62.2007]
[1747364663155,5.7853,172.81,172.78,5.7862]
[1747364663360,58.28,172.83,172.76,62.2007]
[1747364665159,58.28,172.83,172.76,58.36]
[1747364665463,5.7859,172.8,172.76,5.7869]
[1747364665669,58.28,172.79,172.73,58.36]
[1747364666161,58.28,172.79,172.76,5.7869]
[1747364667163,58.28,172.79,172.77,5.7866]
[1747364667465,58.28,172.79,172.73,58.36]
[1747364667668,58.28,172.82,172.8,5.7853]
[1747364667965,58.28,172.82,172.74,58.28]
[1747364668763,58.28,172.82,172.73,58.36]
[1747364670361,59.36,172.81,172.73,58.36]
[1747364670961,65.1453,172.81,172.73,58.36]
[1747364671461,5.7857,172.8,172.73,58.36]
[1747364671661,59.36,172.81,172.73,58.36]
[1747364672168,59.34,172.8,172.7,59.34]
[1747364672560,5.7881,172.73,172.69,9.7741]
[1747364672970,5.7883,172.72,172.69,3.9848]
[1747364673167,5.7883,172.72,172.68,5.7896]
[1747364673966,5.7881,172.73,172.69,5.7893]
[1747364674164,59.36,172.74,172.68,5.42279205]
[1747364674363,5.42279205,172.82,172.68,5.42279205]
[1747364674565,5.7867,172.77,172.73,5.7878]
[1747364674861,59.32,172.76,172.73,5.7878]
[1747364675370,59.32,172.76,172.67,59.34]
[1747364675769,59.32,172.76,172.73,5.7878]
[1747364676272,59.32,172.76,172.75,5.7873]
[1747364676462,59.32,172.76,172.67,59.34]
[1747364676663,59.28,172.77,172.67,59.34]
[1747364677276,65.1454,172.81,172.68,8.68533716]
[1747364677564,59.32,172.8,172.68,8.68533716]
[1747364677965,59.32,172.8,172.75,5.787]
[1747364678265,59.32,172.8,172.72,59.36]
[1747364678663,59.32,172.8,172.75,5.787]
[1747364679470,59.32,172.8,172.76,5.7868]
[1747364679662,59.32,172.8,172.72,63.0587]
[1747364679972,59.32,172.8,172.75,5.7871]
[1747364680872,65.1057,172.8,172.75,5.7871]
[1747364681474,59.32,172.8,172.76,5.7869]
[1747364683268,59.32,172.8,172.77,5.7864]
[1747364683471,59.36,172.81,172.72,63.0587]
[1747364683673,59.24,172.81,172.72,63.0587]
[1747364683874,59.24,172.81,172.79,5.7859]
[1747364684076,59.22,172.83,172.76,59.36]
[1747364684777,59.22,172.84,172.76,59.36]
[1747364685170,65.0043,172.84,172.76,59.36]
[1747364685478,59.22,172.84,172.76,59.36]
[1747364685675,59.22,172.84,172.77,5.7863]
[1747364686382,5.7852,172.82,172.77,5.7863]
[1747364686977,5.7847,172.83,172.76,59.36]
[1747364687177,59.22,172.84,172.76,59.36]
[1747364687377,59.36,172.85,172.76,59.36]
[1747364687578,59.12,172.84,172.76,59.36]
[1747364688978,118.44,172.85,172.76,59.36]
[1747364689182,5.7834,172.87,172.76,59.36]
[1747364689392,59.36,172.89,172.76,59.36]
[1747364689577,5.7832,172.88,172.83,5.7845]
[1747364689874,64.9232,172.88,172.83,5.7845]
[1747364690272,64.9232,172.88,172.76,59.36]
[1747364690273,65.1427,172.89,172.84,5.7842]
[1747364690475,59.12,172.88,172.84,5.7842]
[1747364691280,59.12,172.88,172.83,5.7845]
[1747364691482,59.12,172.88,172.8,59.36]
[1747364692584,5.7838,172.86,172.82,5.7849]
[1747364692777,59.12,172.88,172.8,59.36]
[1747364693083,59.12,172.88,172.79,3.7381]
[1747364693580,59.12,172.88,172.8,5.7856]
[1747364693782,59.12,172.88,172.73,59.34]
[1747364693980,5.7859,172.8,172.75,5.7871]
[1747364694175,59.06,172.79,172.75,5.7871]
[1747364694685,64.846,172.79,172.75,5.7871]
[1747364695683,59.06,172.79,172.74,5.7875]
[1747364696182,5.7863,172.78,172.74,5.7875]
[1747364697787,5.7863,172.78,172.75,5.7872]
[1747364698176,5.7863,172.78,172.73,59.34]
[1747364698579,5.7863,172.78,172.74,5.7875]
[1747364699486,5.7863,172.78,172.73,59.34]
[1747364699487,5.7866,172.77,172.73,65.1279]
[1747364700085,5.7863,172.78,172.74,5.7876]
[1747364700483,5.7863,172.78,172.73,59.34]
[1747364700788,5.7863,172.78,172.73,65.1279]
[1747364700987,5.7863,172.78,172.73,59.34]
[1747364701283,5.7863,172.78,172.74,5.7875]
[1747364701982,59.34,172.81,172.73,59.34]
[1747364702182,58.94,172.82,172.74,5.42707241]
[1747364702687,5.7856,172.81,172.76,5.7869]
[1747364702886,58.94,172.82,172.76,5.7869]
[1747364703087,58.94,172.82,172.74,5.42707241]
[1747364703287,58.94,172.82,172.74,11.21447241]
[1747364703788,5.7863,172.79,172.74,11.21447241]
[1747364704089,5.7863,172.79,172.75,5.7873]
[1747364704278,58.9,172.81,172.74,5.42707241]
[1747364704987,58.94,172.84,172.74,5.42707241]
[1747364705188,5.785,172.82,172.77,5.7864]
[1747364705487,5.785,172.82,172.74,64.30707241]
[1747364705690,58.9,172.83,172.74,64.30707241]
[1747364706086,58.9,172.83,172.74,5.42707241]
[1747364706386,5.7859,172.8,172.75,5.7872]
[1747364706583,58.9,172.83,172.74,5.42707241]
[1747364706888,64.6849,172.83,172.78,5.7861]
[1747364707287,58.9,172.83,172.78,5.7861]
[1747364707590,58.9,172.83,172.74,5.42707241]
[1747364707894,58.9,172.83,172.73,59.34]
[1747364708890,5.7865,172.78,172.73,65.1277]
[1747364709390,5.7865,172.78,172.73,59.34]
[1747364709591,64.766,172.79,172.73,59.34]
[1747364709993,58.98,172.79,172.76,5.7867]
[1747364710199,58.98,172.79,172.73,59.34]
[1747364710789,58.98,172.79,172.76,5.7866]
[1747364711592,58.98,172.79,172.73,59.34]
[1747364712095,58.98,172.79,172.7,64.7287]
[1747364712296,58.98,172.79,172.7,58.94]
[1747364712590,58.98,172.79,172.67,58.94]
[1747364712994,5.7889,172.71,172.67,58.94]
[1747364713190,416.68,172.82,172.66,5.5442]
[1747364713191,58.98,172.72,172.66,3.7062]
[1747364713390,58.98,172.72,172.66,9.4964]
[1747364713590,5.7892,172.7,172.66,9.4964]
[1747364714490,5.7892,172.7,172.67,5.79]
[1747364714688,64.7686,172.72,172.67,5.79]
[1747364714884,58.98,172.72,172.67,5.79]
[1747364715993,58.98,172.72,172.66,3.7062]
[1747364718702,64.7685,172.72,172.67,5.7897]
[1747364720099,58.94,172.73,172.66,3.7062]
[1747364720305,58.86,172.74,172.66,3.7062]
[1747364720498,58.86,172.74,172.67,1.9861]
[1747364720801,58.86,172.74,172.68,58.96]
[1747364721103,58.86,172.74,172.7,5.7887]
[1747364722399,58.86,172.74,172.68,58.96]
[1747364722606,58.86,172.74,172.71,5.7885]
[1747364723706,58.86,172.74,172.68,58.96]
[1747364724008,58.86,172.74,172.66,3.7062]
[1747364725204,58.86,172.74,172.65,58.96]
[1747364725608,64.28707241,172.74,172.62,58.96]
[1747364725807,5.7897,172.68,172.64,5.7907]
[1747364725996,58.84,172.67,172.64,5.7907]
[1747364727509,58.84,172.67,172.65,5.7907]
[1747364727711,58.86,172.7,172.62,58.96]
[1747364728909,58.86,172.7,172.66,5.79]
[1747364729609,64.6491,172.7,172.66,5.79]
[1747364730208,64.6491,172.7,172.65,5.7906]
[1747364730409,5.7893,172.69,172.65,5.7906]
[1747364730607,58.86,172.7,172.62,58.96]
[1747364730812,58.86,172.7,172.63,5.7912]
[1747364731113,5.7902,172.67,172.63,5.7912]
[1747364731808,58.78,172.66,172.61,5.7917]
[1747364732608,58.78,172.66,172.59,62.8777]
[1747364733717,5.791,172.64,172.59,9.7101]
[1747364734511,5.791,172.64,172.6,5.7923]
[1747364734716,5.7907,172.65,172.59,3.9177]
[1747364735017,58.78,172.66,172.59,3.9177]
[1747364735716,5.7911,172.64,172.6,5.7921]
[1747364736318,58.78,172.66,172.56,475.54]
[1747364736519,58.78,172.66,172.56,58.76]
[1747364737116,5.792,172.61,172.57,5.7931]
[1747364737319,64.512,172.61,172.57,5.7931]
[1747364737517,58.72,172.61,172.53,64.18707241]
[1747364738223,58.72,172.61,172.58,5.793]
[1747364738425,58.72,172.61,172.53,64.18707241]
[1747364738722,58.72,172.63,172.53,64.18707241]
[1747364739319,5.7923,172.61,172.56,5.7934]
[1747364739518,58.72,172.63,172.56,5.7934]
[1747364739925,5.7927,172.59,172.53,58.76]
[1747364740126,64.5327,172.59,172.53,58.76]
[1747364740318,58.74,172.59,172.55,5.7938]
[1747364740725,58.74,172.59,172.53,58.76]
[1747364740917,58.74,172.59,172.58,5.793]
[1747364741525,58.78,172.61,172.59,5.7924]
[1747364742115,58.72,172.63,172.53,64.18707241]
[1747364742316,58.72,172.63,172.54,58.72]
[1747364743326,58.72,172.63,172.57,5.7933]
[1747364743625,58.72,172.63,172.53,64.18707241]
[1747364743827,5.7924,172.6,172.55,5.7939]
[1747364744130,58.72,172.63,172.53,64.18707241]
[1747364744323,58.72,172.63,172.56,5.7934]
[1747364744736,5.7923,172.61,172.56,5.7934]
[1747364744929,58.72,172.63,172.55,5.794]
[1747364746230,58.72,172.63,172.53,58.76]
[1747364748128,5.7917,172.62,172.53,58.76]
[1747364748628,5.792,172.61,172.56,5.7934]
[1747364748933,5.792,172.61,172.53,58.76]
[1747364749127,58.72,172.63,172.53,58.76]
[1747364749932,5.7923,172.6,172.56,5.7934]
[1747364751135,5.7927,172.59,172.56,5.7934]
[1747364751334,5.7927,172.59,172.55,5.7939]
[1747364751637,64.3727,172.59,172.55,5.7939]
[1747364751835,64.3727,172.59,172.56,5.7937]
[1747364752635,64.3727,172.59,172.55,5.7939]
[1747364754742,117.38,172.59,172.5,58.8]
[1747364755437,117.38,172.59,172.47,64.22707241]
[1747364755633,117.38,172.59,172.49,5.796]
[1747364755634,122.80707241,172.59,172.49,5.796]
[1747364756345,5.7948,172.53,172.49,5.796]
[1747364756739,58.54,172.54,172.5,5.7956]
[1747364757045,64.3346,172.54,172.5,5.7956]
[1747364757344,64.3346,172.54,172.51,5.7953]
[1747364757647,64.3346,172.54,172.47,64.22707241]
[1747364757648,58.54,172.54,172.47,64.22707241]
[1747364758043,58.54,172.54,172.52,5.7948]
[1747364758445,58.54,172.54,172.47,64.22707241]
[1747364758744,58.54,172.54,172.5,5.7954]
[1747364758944,58.54,172.54,172.47,64.22707241]
[1747364759647,58.54,172.54,172.46,3.6994]
[1747364760437,58.54,172.54,172.43,58.8]
[1747364760641,5.797,172.47,172.43,5.798]
[1747364761037,58.54,172.49,172.41,3.903]
[1747364761743,5.798,172.44,172.39,5.7993]
[1747364762746,5.798,172.44,172.4,5.799]
[1747364762938,58.58,172.45,172.37,62.703]
[1747364763142,5.42707241,172.56,172.37,62.703]
[1747364763340,117.12,172.55,172.37,62.703]
[1747364763542,5.7954,172.51,172.46,5.7968]
[1747364763744,58.58,172.5,172.42,63.98707241]
[1747364764444,58.58,172.5,172.42,58.56]
[1747364764750,58.58,172.5,172.39,63.98707241]
[1747364765450,58.58,172.5,172.42,5.7981]
[1747364765848,5.7973,172.46,172.39,63.98707241]
[1747364766047,64.3973,172.46,172.39,63.98707241]
[1747364767249,64.3973,172.46,172.42,5.7983]
[1747364767438,58.6,172.46,172.39,63.98707241]
[1747364768748,64.3971,172.46,172.39,63.98707241]
[1747364769545,64.3971,172.46,172.41,5.7987]
[1747364770352,5.7974,172.45,172.41,5.7987]
[1747364770551,58.6,172.46,172.37,3.903]
[1747364771044,58.6,172.46,172.37,9.703]
[1747364771245,5.7989,172.41,172.37,9.703]
[1747364771441,58.56,172.41,172.33,58.58]
[1747364772050,58.56,172.41,172.39,5.7991]
[1747364772247,58.6,172.43,172.34,5.42707241]
[1747364773449,417.46,172.49,172.37,5.42707241]
[1747364773648,58.58,172.48,172.4,5.42707241]
[1747364773842,58.58,172.51,172.46,5.7968]
[1747364774042,58.62,172.5,172.41,3.8053]
[1747364774249,58.62,172.5,172.42,58.58]
[1747364774452,58.62,172.5,172.45,5.7971]
[1747364774753,5.7959,172.5,172.45,5.7971]
[1747364774951,58.62,172.5,172.45,5.7971]
[1747364775153,58.62,172.5,172.46,5.797]
[1747364776251,64.4158,172.5,172.45,5.7973]
[1747364776559,58.62,172.5,172.45,5.7973]
[1747364776751,64.4158,172.5,172.45,5.7973]
[1747364777258,58.62,172.5,172.45,5.7973]
[1747364777956,58.62,172.5,172.42,58.58]
[1747364778352,58.62,172.5,172.41,3.8053]
[1747364779252,5.7974,172.45,172.41,9.604]
[1747364779456,64.4374,172.45,172.41,3.8053]
[1747364780056,5.7977,172.44,172.41,3.8053]
[1747364781159,64.4374,172.45,172.41,9.604]
[1747364782059,58.64,172.45,172.41,3.8053]
[1747364782455,58.64,172.45,172.38,1.8338]
[1747364782759,58.64,172.45,172.37,5.7998]
[1747364783763,5.799,172.41,172.37,5.7998]
[1747364783956,58.6,172.41,172.36,58.58]
[1747364784957,58.6,172.41,172.38,5.7995]
[1747364785464,58.6,172.41,172.36,58.58]
[1747364785762,58.6,172.41,172.35,3.9299]
[1747364786566,5.7994,172.39,172.35,9.7306]
[1747364787067,58.6,172.41,172.35,3.9299]
[1747364787260,58.6,172.41,172.32,60.4543]
[1747364787261,5.8001,172.37,172.33,5.8013]
[1747364787665,5.8001,172.37,172.34,5.801]
[1747364787869,5.8007,172.36,172.32,60.4543]
[1747364788265,58.66,172.37,172.32,64.3817]
[1747364788570,5.8005,172.36,172.32,5.8017]
[1747364788869,58.66,172.37,172.32,5.8017]
[1747364789168,64.4601,172.37,172.32,5.8017]
[1747364789369,64.4601,172.37,172.33,5.8013]
[1747364792278,58.66,172.37,172.34,5.8011]
[1747364792471,58.66,172.37,172.29,62.4888]
[1747364795279,58.66,172.37,172.35,5.8005]
[1747364795478,58.58,172.39,172.29,62.4888]
[1747364795880,58.58,172.39,172.36,5.8001]
[1747364796176,58.84,172.4,172.36,5.8001]
[1747364796481,58.84,172.4,172.29,62.4888]
[1747364796482,58.84,172.4,172.35,5.8005]
[1747364797584,5.7994,172.39,172.35,5.8005]
[1747364797784,58.82,172.39,172.36,5.8003]
[1747364798383,58.82,172.39,172.37,5.8001]
[1747364798984,117.6,172.42,172.38,5.7997]
[1747364799786,58.78,172.42,172.38,5.7997]
[1747364799986,117.62,172.42,172.38,5.7997]
[1747364800487,117.62,172.42,172.33,58.78]
[1747364801887,5.7991,172.4,172.36,5.8002]
[1747364802179,117.62,172.42,172.33,58.78]
[1747364802885,5.7996,172.39,172.35,5.8007]
[1747364803387,5.7991,172.4,172.36,5.8003]
[1747364803982,5.7994,172.39,172.36,5.8003]
[1747364804488,5.7994,172.39,172.35,5.8007]
[1747364805188,5.7991,172.4,172.36,5.8003]
[1747364805589,58.78,172.42,172.33,58.78]
[1747364805778,117.8,172.42,172.34,7.39585087]
[1747364805982,58.78,172.45,172.34,66.39585087]
[1747364806183,5.45035087,172.54,172.37,5.45035087]
[1747364806384,117.8,172.53,172.4,5.45035087]
[1747364806583,117.8,172.53,172.4,64.23035087]
[1747364806886,5.7967,172.47,172.43,5.798]
[1747364807379,5.7974,172.45,172.41,5.7984]
[1747364809285,5.7977,172.44,172.4,5.799]
[1747364809478,5.7977,172.44,172.38,3.817]
[1747364809682,64.7177,172.44,172.38,3.817]
[1747364809883,58.92,172.44,172.38,3.817]
[1747364810890,58.92,172.44,172.4,5.7989]
[1747364811291,58.92,172.44,172.38,3.817]
[1747364812189,58.92,172.44,172.39,5.7993]
[1747364812788,64.7178,172.44,172.4,5.7989]
[1747364813093,58.92,172.44,172.4,5.7989]
[1747364814290,64.7178,172.44,172.4,5.7989]
[1747364815393,58.92,172.44,172.41,5.7987]
[1747364816494,64.7178,172.44,172.4,5.799]
[1747364817593,64.7178,172.44,172.41,5.7987]
[1747364817798,58.92,172.44,172.34,123.4587]
[1747364818297,58.92,172.44,172.36,5.45035087]
[1747364818491,58.78,172.45,172.36,5.45035087]
[1747364818691,117.62,172.45,172.36,5.45035087]
[1747364818995,117.62,172.45,172.42,5.7981]
[1747364819397,117.62,172.45,172.36,5.45035087]
[1747364819889,5.798,172.44,172.39,5.7991]
[1747364820698,117.62,172.45,172.34,64.4987]
[1747364821700,58.78,172.45,172.34,64.4987]
[1747364821896,58.8,172.44,172.34,64.4987]
[1747364822803,5.7983,172.43,172.39,5.7993]
[1747364823003,58.8,172.44,172.34,64.4987]
[1747364823402,5.7981,172.43,172.39,5.7992]
[1747364824101,5.7984,172.42,172.38,5.7997]
[1747364824405,58.8,172.44,172.34,64.4987]
[1747364824792,5.7988,172.41,172.37,5.7998]
[1747364825299,58.76,172.4,172.34,64.4987]
[1747364825999,64.5593,172.4,172.36,5.8003]
[1747364827003,58.76,172.4,172.37,5.8]
[1747364827203,58.76,172.4,172.34,64.4987]
[1747364828006,58.76,172.4,172.36,5.8002]
[1747364828500,58.76,172.4,172.34,64.4987]
[1747364828705,58.76,172.43,172.34,64.4987]
[1747364828901,58.76,172.43,172.36,5.45035087]
[1747364829600,58.76,172.43,172.4,5.7988]
[1747364829805,58.76,172.43,172.36,5.45035087]
[1747364830407,58.76,172.43,172.4,5.7988]
[1747364831104,58.76,172.43,172.41,5.7987]
[1747364831301,58.76,172.43,172.36,5.45035087]
[1747364831610,58.78,172.45,172.41,5.7987]
[1747364831810,58.72,172.44,172.41,5.7987]
[1747364833110,58.72,172.44,172.42,5.7983]
[1747364833711,58.78,172.45,172.43,5.798]
[1747364833910,117.46,172.45,172.43,5.798]
[1747364834213,117.46,172.45,172.42,5.7983]
[1747364834812,123.2574,172.45,172.4,5.7988]
[1747364835314,123.2574,172.45,172.38,58.78]
[1747364835610,123.2574,172.45,172.4,5.799]
[1747364836214,117.46,172.45,172.38,58.78]
[1747364836411,58.78,172.45,172.38,58.78]
[1747364836708,58.62,172.47,172.39,5.45035087]
[1747364836903,58.62,172.47,172.4,1.8121]
[1747364837305,58.78,172.5,172.41,3.8527]
[1747364837506,58.64,172.48,172.45,5.7971]
[1747364838010,64.4364,172.48,172.43,5.798]
[1747364838509,64.4364,172.48,172.41,3.8527]
[1747364839214,64.4364,172.48,172.44,5.7974]
[1747364839415,58.64,172.48,172.44,5.7974]
[1747364839914,58.64,172.48,172.45,5.7974]
[1747364841014,58.64,172.48,172.41,3.8527]
[1747364841717,58.64,172.48,172.44,5.7974]
[1747364842412,58.64,172.48,172.45,5.7972]
[1747364842612,58.64,172.48,172.41,3.8527]
[1747364842916,58.64,172.48,172.45,5.7972]
[1747364843215,58.52,172.49,172.45,5.7972]
[1747364843710,64.3163,172.49,172.45,5.7972]
[1747364843917,58.52,172.49,172.44,5.7976]
[1747364844214,58.52,172.49,172.41,3.8527]
[1747364844918,5.7974,172.45,172.41,9.6513]
[1747364845122,64.3174,172.45,172.41,5.7986]
[1747364845318,64.3174,172.45,172.38,58.78]
[1747364845319,58.52,172.45,172.38,58.78]
[1747364846219,5.7978,172.44,172.4,5.7988]
[1747364846521,58.52,172.48,172.38,64.23035087]
[1747364846709,58.52,172.48,172.44,5.7975]
[1747364846921,58.52,172.48,172.39,58.52]
[1747364847216,64.3164,172.48,172.44,5.7976]
[1747364848323,58.52,172.48,172.45,5.7974]
[1747364849723,58.52,172.48,172.39,58.52]
[1747364850021,58.52,172.48,172.4,1.8372]
[1747364850424,58.52,172.48,172.46,5.7968]
[1747364851925,58.52,172.48,172.47,5.7967]
[1747364852114,58.78,172.49,172.47,5.7967]
[1747364852721,58.52,172.51,172.42,58.76]
[1747364852915,58.52,172.52,172.44,5.45035087]
[1747364853313,58.52,172.53,172.44,5.45035087]
[1747364854024,58.52,172.53,172.49,5.7957]
[1747364854223,58.52,172.53,172.44,5.45035087]
[1747364855021,58.52,172.53,172.5,5.7955]
[1747364855213,58.52,172.55,172.46,58.5]
[1747364855421,58.52,172.55,172.47,65.78635087]
[1747364855716,58.52,172.56,172.47,65.78635087]
[1747364856224,58.52,172.56,172.51,5.7952]
[1747364856426,64.3138,172.56,172.51,5.7952]
[1747364857224,5.7938,172.56,172.51,5.7952]
[1747364857427,5.794,172.55,172.51,5.7952]
[1747364858323,58.52,172.56,172.52,5.795]
[1747364858523,58.52,172.56,172.47,65.78635087]
[1747364858725,58.5,172.58,172.47,65.78635087]
[1747364858920,64.2933,172.58,172.47,65.78635087]
[1747364859326,58.5,172.58,172.47,65.78635087]
[1747364859526,64.293,172.58,172.52,5.7947]
[1747364859728,64.293,172.58,172.5,58.5]
[1747364860021,64.293,172.58,172.53,5.7946]
[1747364860226,5.7933,172.57,172.5,58.5]
[1747364860415,58.5,172.58,172.5,58.5]
[1747364860727,5.7934,172.57,172.52,5.7949]
[1747364861127,58.5,172.58,172.5,58.5]
[1747364861529,64.2933,172.58,172.53,5.7944]
[1747364861727,64.2933,172.58,172.5,58.5]
[1747364862727,64.2933,172.58,172.53,5.7944]
[1747364862928,58.5,172.58,172.5,58.5]
[1747364863428,5.7943,172.55,172.5,64.2955]
[1747364863727,5.7943,172.55,172.5,5.7955]
[1747364864431,5.7943,172.55,172.47,124.26635087]
[1747364864727,5.7938,172.56,172.47,124.26635087]
[1747364864925,5.7938,172.56,172.52,5.795]
[1747364865428,5.794,172.55,172.52,5.795]
[1747364865632,58.5,172.54,172.47,58.48]
[1747364865834,58.5,172.54,172.44,58.48]
[1747364866124,5.7954,172.51,172.44,58.48]
[1747364866319,58.5,172.5,172.44,58.48]
[1747364866929,5.7963,172.49,172.45,5.7971]
[1747364867130,58.5,172.5,172.45,5.7971]
[1747364867633,5.7964,172.48,172.44,5.7976]
[1747364867825,58.5,172.5,172.43,3.7573]
[1747364869230,5.7963,172.49,172.43,3.7573]
[1747364869931,5.7964,172.48,172.44,5.7974]
[1747364870231,58.5,172.5,172.41,58.48]
[1747364870424,5.797,172.46,172.42,5.7983]
[1747364871125,58.5,172.5,172.41,58.48]
[1747364871126,5.7974,172.45,172.41,64.2787]
[1747364871323,5.7974,172.45,172.41,5.7987]
[1747364871523,58.5,172.46,172.39,1.8952]
[1747364871729,64.2974,172.46,172.41,5.7985]
[1747364874229,58.5,172.46,172.38,58.5]
[1747364876338,58.5,172.46,172.42,5.7983]
[1747364876649,58.5,172.46,172.38,58.5]
[1747364876940,58.5,172.46,172.42,5.7981]
[1747364877538,58.5,172.46,172.43,5.798]
[1747364878642,58.5,172.46,172.42,5.7981]
[1747364880341,58.5,172.46,172.41,5.7987]
[1747364880540,58.5,172.46,172.38,58.5]
[1747364880746,5.7986,172.42,172.38,5.7997]
[1747364880930,64.2986,172.42,172.38,5.7997]
[1747364883143,5.7987,172.41,172.37,5.8]
[1747364883441,58.5,172.42,172.37,5.8]
[1747364883637,5.7991,172.4,172.36,5.8003]
[1747364883847,58.5,172.42,172.32,63.95035087]
[1747364884346,5.7994,172.39,172.36,5.8004]
[1747364885442,58.5,172.42,172.36,5.8004]
[1747364886249,5.7991,172.4,172.36,5.8004]
[1747364886744,58.5,172.42,172.32,63.95035087]
[1747364887242,5.7994,172.39,172.32,63.95035087]
[1747364887847,58.5,172.42,172.32,63.95035087]
[1747364888346,5.7988,172.41,172.37,5.7998]
[1747364888544,58.5,172.43,172.33,1.9375]
[1747364888734,58.52,172.42,172.33,1.9375]
[1747364889145,58.52,172.42,172.32,122.47035087]
[1747364889647,5.7996,172.39,172.35,5.8006]
[1747364890345,5.7998,172.38,172.35,5.8006]
[1747364891351,5.7995,172.39,172.35,5.8006]
[1747364891747,58.52,172.42,172.35,5.8006]
[1747364891962,63.97035087,172.42,172.27,1.9375]
[1747364892163,5.45035087,172.39,172.27,5.8415]
[1747364892359,117.04,172.38,172.29,5.8025]
[1747364892659,5.8014,172.34,172.29,5.8025]
[1747364892861,58.52,172.33,172.29,5.8025]
[1747364893054,58.52,172.33,172.27,3.904]
[1747364893256,58.52,172.33,172.23,60.3366]
[1747364893257,117.04,172.33,172.23,60.3366]
[1747364893959,117.04,172.33,172.25,5.45035087]
[1747364894254,117.04,172.33,172.29,5.8025]
[1747364894455,117.04,172.33,172.25,5.45035087]